bitfinex/quotes_ETHUSD_20251031
["timestamp","ask_amount","ask_price","bid_price","bid_amount"]
[1761928984696,2.077628,3859.3,3859.2,3.49261061]
[1761928984887,0.40643811,3859.4,3859.2,3.49261061]
[1761928985084,0.001,3859.9,3859.3,3.10454347]
[1761928985318,6.605909,3859.9,3859.8,0.1589]
[1761928985636,4.93003758,3859.9,3859.8,0.1589]
[1761928985811,1.80709858,3859.9,3859.8,0.1589]
[1761928986127,1.39968,3859.7,3859.1,3.08906542]
[1761928986284,1.39968,3859.7,3859.2,0.4864]
[1761928986285,13.526747,3859.6,3859.2,0.4864]
[1761928986489,16.15816,3859.5,3859.1,2.78877574]
[1761928986721,1.39968,3859.7,3859.2,0.4864]
[1761928986722,7.112152,3859.4,3859.2,0.4864]
[1761928986952,5.636061,3859.6,3859.2,3.07760131]
[1761928987154,4.914152,3859.6,3859.2,3.07760131]
[1761928987456,7.58687,3859.6,3859.5,0.4843]
[1761928987648,8.151924,3859.6,3859.5,0.4843]
[1761928987850,1.39968,3859.7,3859.5,0.4843]
[1761928988055,8.554409,3859.6,3859.2,2.59120131]
[1761928988347,1.39968,3859.8,3859.3,2.59113241]
[1761928988548,0.40741858,3859.9,3859.6,2.5908963]
[1761928988755,7.679087,3859.8,3859.3,0.53799699]
[1761928988955,7.679087,3859.8,3859.5,2.59100464]
[1761928989120,7.679087,3859.8,3859.1,0.6839]
[1761928989453,0.59631858,3859.9,3859.1,0.6839]
[1761928989454,18.210393,3859.6,3859.1,2.59323015]
[1761928989620,18.210393,3859.6,3859.1,2.59327452]
[1761928989819,0.4958,3859.6,3859.1,2.59327452]
[1761928990538,0.4958,3859.6,3859.1,0.002]
[1761928990757,10.467264,3859.5,3859.1,0.002]
[1761928991153,0.4957,3859.2,3859.1,0.002]
[1761928991353,6.071759,3859.2,3859.1,0.002]
[1761928992218,30.8685,3859.2,3859.1,0.002]
[1761928992420,18.012576,3859.2,3859.1,0.002]
[1761928993217,22.887097,3859.2,3859.1,0.002]
[1761928993449,25.77913734,3859.2,3859.1,0.002]
[1761928993650,23.75253234,3859.2,3859.1,0.002]
[1761928994130,20.36271834,3859.2,3859.1,0.002]
[1761928994512,5.662171,3859.3,3859.1,0.5012]
[1761928994788,1.39968,3859.4,3859.1,0.5012]
[1761928994976,4.253668,3859.3,3859.1,0.002]
[1761928995177,4.227449,3859.3,3859.1,0.002]
[1761928995363,12.25852,3859.4,3859.1,0.002]
[1761928995564,0.3727,3859.2,3859.1,0.002]
[1761928995788,11.374754,3859.2,3859.1,0.002]
[1761928995990,0.40644116,3859.3,3859.2,2.59121061]
[1761928996191,0.40644116,3859.3,3859.2,3.53998813]
[1761928996352,0.40644116,3859.3,3859.2,4.02638813]
[1761928996551,0.40644116,3859.3,3859.1,0.002]
[1761928996777,0.40644116,3859.3,3859.2,2.59121061]
[1761928997390,0.40644116,3859.3,3859.2,3.05281061]
[1761928997691,0.40644116,3859.3,3859.2,3.51441061]
[1761928998656,0.001,3859.9,3859.2,0.9232]
[1761928998657,3.390292,3859.8,3859.2,0.9232]
[1761928998858,0.001,3859.9,3859.8,3.05240781]
[1761928999270,0.001,3859.9,3859.8,3.54050781]
[1761928999472,0.001,3859.9,3859.8,0.4616]
[1761928999792,0.001,3859.9,3859.3,0.4881]
[1761928999793,3.745944,3859.8,3859.3,0.4881]
[1761929000203,2.785286,3859.8,3859.7,0.476]
[1761929000666,2.785286,3859.8,3859.5,2.59095591]
[1761929001062,2.785286,3859.8,3859.3,3.07922067]
[1761929001270,2.785286,3859.8,3859.7,0.476]
[1761929001472,2.494588,3859.8,3859.7,0.476]
[1761929001866,2.494588,3859.8,3859.7,0.9641]
[1761929002085,2.494588,3859.8,3859.7,0.476]
[1761929002413,2.494588,3859.8,3859.3,2.59110407]
[1761929003201,19.790242,3859.8,3859.7,0.476]
[1761929003503,17.10442,3859.7,3859.1,0.1855]
[1761929004287,20.957948,3859.7,3859.1,0.1855]
[1761929004486,12.932891,3859.4,3859.1,0.002]
[1761929004906,11.234994,3859.2,3859.1,0.002]
[1761929005316,17.6184,3859.2,3859.1,0.002]
[1761929006188,20.955516,3859.2,3859.1,0.002]
[1761929006833,24.78175138,3859.2,3859.1,0.002]
[1761929007183,4.24203538,3859.2,3859.1,0.002]
[1761929007383,32.678984,3859.2,3859.1,0.002]
[1761929008807,35.71391492,3859.2,3859.1,0.002]
[1761929008987,36.20758153,3859.2,3859.1,0.002]
[1761929009319,35.89938354,3859.2,3859.1,0.002]
[1761929010162,40.17838354,3859.2,3859.1,0.002]
[1761929010469,35.89938354,3859.2,3859.1,0.002]
[1761929010668,38.21132847,3859.2,3859.1,0.002]
[1761929011378,35.62011786,3859.2,3859.1,0.002]
[1761929011735,38.21132847,3859.2,3859.1,0.002]
[1761929011935,35.62011786,3859.2,3859.1,0.002]
[1761929012242,35.02051386,3859.2,3859.1,0.002]
[1761929012446,35.83272842,3859.2,3859.1,0.002]
[1761929013268,35.42722442,3859.2,3859.1,0.002]
[1761929013469,35.83272842,3859.2,3859.1,0.002]
[1761929013671,36.23927295,3859.2,3859.1,0.002]
[1761929014933,38.83048356,3859.2,3859.1,0.002]
[1761929015138,36.23927295,3859.2,3859.1,0.002]
[1761929016637,35.83272842,3859.2,3859.1,0.002]
[1761929017481,35.93583842,3859.2,3859.1,0.002]
[1761929017665,38.52704903,3859.2,3859.1,0.002]
[1761929017878,35.93583842,3859.2,3859.1,0.002]
[1761929018392,38.52704903,3859.2,3859.1,0.002]
[1761929018848,35.93583842,3859.2,3859.1,0.002]
[1761929019049,37.03183842,3859.2,3859.1,0.002]
[1761929019247,37.48983842,3859.2,3859.1,0.002]
[1761929020685,37.38592842,3859.2,3859.1,0.002]
[1761929021479,35.37392842,3859.2,3859.1,0.002]
[1761929021657,35.78047328,3859.2,3859.1,0.002]
[1761929021860,37.79247328,3859.2,3859.1,0.002]
[1761929024954,40.38368389,3859.2,3859.1,0.002]
[1761929025169,37.79247328,3859.2,3859.1,0.002]
[1761929025374,37.89638571,3859.2,3859.1,0.002]
[1761929025988,40.48759632,3859.2,3859.1,0.002]
[1761929026150,40.08088576,3859.2,3859.1,0.002]
[1761929026679,40.38045237,3859.2,3859.1,0.002]
[1761929026866,40.68865036,3859.2,3859.1,0.002]
[1761929027272,46.59903018,3859.2,3859.1,0.002]
[1761929027480,46.59903018,3859.2,3858.8,0.002]
[1761929027481,4.55091606,3858.9,3858.8,0.002]
[1761929027787,35.95066321,3858.8,3858.7,0.002]
[1761929027983,42.61900964,3858.8,3858.7,0.002]
[1761929028312,42.99140964,3858.8,3858.7,0.002]
[1761929028484,42.99140964,3858.8,3858.1,0.007]
[1761929028485,39.26956382,3858.2,3858.1,0.007]
[1761929028857,38.54556382,3858.2,3858.1,0.007]
[1761929029052,38.54556382,3858.2,3856.8,0.1955]
[1761929029053,42.71107536,3858.2,3857.1,0.005]
[1761929029259,32.362184,3857.2,3857.1,0.005]
[1761929029686,34.371884,3857.2,3857.1,0.005]
[1761929030483,34.50135255,3857.2,3857.1,0.005]
[1761929030790,41.09388229,3857.2,3857.1,0.005]
[1761929031172,39.53988229,3857.2,3857.1,0.005]
[1761929031384,28.27548047,3857.2,3857.1,0.5012]
[1761929031558,1.805184,3857.2,3857.1,0.5012]
[1761929031753,31.805184,3857.2,3857.1,1.0566]
[1761929031986,32.56750151,3857.2,3857.1,0.005]
[1761929032900,32.21190151,3857.2,3857.1,0.005]
[1761929033104,33.02730151,3857.2,3857.1,0.005]
[1761929033408,37.19281305,3857.2,3857.1,0.005]
[1761929034192,36.73301305,3857.2,3857.1,0.005]
[1761929035014,37.19281305,3857.2,3857.1,0.005]
[1761929035305,39.78536723,3857.2,3857.1,0.005]
[1761929036384,37.19281305,3857.2,3857.1,0.005]
[1761929036588,36.73301305,3857.2,3857.1,0.005]
[1761929037616,34.82341305,3857.2,3857.1,0.005]
[1761929037825,13.79572851,3857.2,3857.1,1.151]
[1761929038388,12.89626451,3857.2,3857.1,1.151]
[1761929038709,29.241577,3857.2,3857.1,0.6905]
[1761929039096,22.678277,3857.2,3857.1,1.151]
[1761929039278,22.834118,3857.2,3857.1,1.151]
[1761929039633,22.834118,3857.2,3857.1,1.153]
[1761929039634,8.293063,3857.2,3857.1,1.153]
[1761929039795,11.915639,3857.2,3857.1,1.153]
[1761929040318,11.915639,3857.2,3857.1,0.6925]
[1761929040690,1.39968,3857.2,3857.1,0.6925]
[1761929040892,31.39968,3857.2,3857.1,0.6925]
[1761929041105,16.723697,3857.2,3857.1,1.153]
[1761929041398,16.50106,3857.2,3857.1,1.153]
[1761929041798,20.638912,3857.2,3857.1,1.153]
[1761929042613,20.638112,3857.2,3857.1,1.153]
[1761929042827,17.756396,3857.2,3857.1,1.153]
[1761929043008,15.429765,3857.2,3857.1,1.153]
[1761929043615,15.429765,3857.2,3857.1,0.5032]
[1761929043616,16.9727415,3857.2,3857.1,0.5032]
[1761929043827,34.9073605,3857.2,3857.1,0.5032]
[1761929044027,33.3473605,3857.2,3857.1,0.5032]
[1761929044233,31.804384,3857.2,3857.1,0.5032]
[1761929044431,31.804384,3857.2,3857.1,0.9637]
[1761929044999,9.063131,3857.2,3857.1,1.153]
[1761929045194,3.97486,3857.2,3857.1,1.153]
[1761929045918,17.560814,3857.2,3857.1,1.153]
[1761929046120,11.177863,3857.2,3857.1,1.153]
[1761929046323,8.313516,3857.2,3857.1,1.153]
[1761929046500,7.301466,3857.2,3857.1,1.153]
[1761929046704,0.405504,3857.7,3857.1,1.153]
[1761929046705,26.000293,3857.7,3857.1,1.153]
[1761929046897,26.000293,3857.7,3857.6,0.4962]
[1761929046898,18.089152,3857.7,3857.6,0.4962]
[1761929047126,19.488832,3857.7,3857.6,0.9567]
[1761929047638,17.866828,3857.7,3857.6,0.9567]
[1761929048040,1.39968,3857.4,3857.1,0.1963]
[1761929048241,19.329429,3857.2,3857.1,0.1963]
[1761929048765,19.329429,3857.2,3857.1,1.153]
[1761929048967,17.464913,3857.2,3857.1,1.153]
[1761929049131,19.8033599,3857.2,3857.1,1.153]
[1761929049340,19.8033599,3857.2,3857.1,0.5032]
[1761929049527,22.1787599,3857.2,3857.1,0.007]
[1761929050066,31.6384109,3857.2,3857.1,0.007]
[1761929050367,31.9950109,3857.2,3857.1,0.007]
[1761929050954,35.6547269,3857.2,3857.1,0.007]
[1761929052242,35.6547269,3857.2,3857.1,1.153]
[1761929052243,28.0390639,3857.2,3857.1,1.153]
[1761929052446,12.594718,3857.2,3857.1,1.153]
[1761929053174,19.353475,3857.2,3857.1,0.1963]
[1761929053386,30.68596541,3857.2,3857.1,0.007]
[1761929053666,34.08717072,3857.2,3857.1,0.007]
[1761929053873,33.75614396,3857.2,3857.1,0.007]
[1761929054072,34.55832706,3856.8,3856.7,0.002]
[1761929054244,37.07290068,3856.8,3856.7,0.002]
[1761929054447,0.405504,3856.3,3856.1,0.005]
[1761929054706,39.92867063,3856.2,3856.1,0.005]
[1761929054866,22.6949784,3856.2,3856.1,0.005]
[1761929055068,23.6041034,3856.2,3856.1,0.5012]
[1761929055267,18.5041114,3856.2,3856.1,0.5012]
[1761929055488,16.070783,3856.2,3856.1,0.6905]
[1761929055698,16.070783,3856.2,3856.1,1.151]
[1761929055699,2.387777,3856.2,3856.1,1.151]
[1761929055884,0.6581,3857.3,3856.1,1.151]
[1761929055885,30.0,3857.1,3856.1,1.151]
[1761929056078,1.39968,3856.8,3856.1,1.151]
[1761929056302,1.39968,3856.4,3856.1,0.6905]
[1761929056514,1.39968,3856.2,3856.1,0.6905]
[1761929056680,15.157862,3856.2,3856.1,0.1943]
[1761929057005,7.892069,3856.2,3856.1,0.6905]
[1761929057297,17.691651,3856.2,3856.1,1.151]
[1761929057663,8.438914,3856.2,3856.1,1.151]
[1761929058186,7.148919,3856.2,3856.1,1.151]
[1761929058591,7.148919,3856.2,3856.1,1.153]
[1761929058798,4.053859,3856.2,3856.1,1.153]
[1761929058974,0.13560015,3857.2,3856.1,1.52764236]
[1761929059175,0.6591,3857.7,3856.2,0.4605]
[1761929059176,30.0,3857.6,3856.2,0.4605]
[1761929059477,0.405504,3857.2,3856.2,0.4605]
[1761929059683,0.405504,3856.7,3856.2,0.4605]
[1761929059894,30.405504,3856.9,3856.2,0.4605]
[1761929059895,1.39968,3856.3,3856.2,0.4605]
[1761929060095,6.315704,3856.3,3856.2,0.4605]
[1761929060270,10.115004,3856.3,3856.2,0.918]
[1761929060470,1.39968,3856.3,3856.2,0.918]
[1761929061191,1.39968,3856.3,3856.2,3.51122649]
[1761929061393,17.670449,3857.3,3856.3,2.59313564]
[1761929061693,1.89389378,3857.7,3856.3,2.59313564]
[1761929061694,5.642371,3857.1,3857.0,0.4575]
[1761929061899,5.982925,3856.8,3856.4,0.463]
[1761929062071,5.723192,3856.8,3856.4,0.463]
[1761929062294,1.39968,3857.4,3856.7,0.4575]
[1761929062603,1.39968,3857.0,3856.5,2.61895256]
[1761929062789,0.13659378,3857.7,3857.6,0.1955]
[1761929062790,6.834795,3857.7,3857.6,0.1955]
[1761929062985,5.410226,3857.7,3857.6,0.653]
[1761929063221,3.628482,3857.7,3857.6,1.116]
[1761929063521,5.433666,3857.7,3857.6,1.116]
[1761929063723,5.028162,3857.7,3857.6,1.116]
[1761929063887,5.60392,3857.7,3857.6,1.116]
[1761929064097,0.001,3857.7,3857.6,1.116]
[1761929064592,2.14357,3857.7,3857.6,1.116]
[1761929065021,0.001,3857.7,3857.6,1.116]
[1761929065227,0.001,3857.7,3857.6,3.70828535]
[1761929066091,0.001,3857.7,3857.6,4.34094769]
[1761929066914,0.001,3857.7,3857.6,3.70828535]
[1761929067593,0.001,3857.7,3857.6,1.116]
[1761929067928,2.042863,3857.7,3857.6,1.116]
[1761929068294,0.0002,3857.7,3857.6,1.116]
[1761929068823,0.0002,3857.7,3857.6,7.58828535]
[1761929069804,0.0002,3857.7,3857.6,4.996]
[1761929070412,0.0002,3857.7,3857.6,7.58828535]
[1761929070614,0.0002,3857.7,3857.6,4.996]
[1761929070954,0.0002,3857.7,3857.6,7.58828535]
[1761929071136,0.0002,3857.7,3857.6,4.996]
[1761929071644,8.417131,3857.7,3857.6,4.996]
[1761929071812,3.21485,3857.7,3857.6,4.996]
[1761929072617,7.400219,3857.7,3857.6,4.996]
[1761929072816,2.22377,3857.7,3857.6,4.996]
[1761929073017,0.0002,3857.7,3857.6,4.996]
[1761929073429,2.22377,3857.7,3857.6,1.116]
[1761929074729,2.077772,3857.7,3857.6,1.116]
[1761929074930,0.0002,3857.7,3857.6,1.116]
[1761929075150,2.115766,3857.7,3857.6,1.116]
[1761929075326,0.0002,3857.7,3857.6,1.116]
[1761929076216,20.360044,3857.6,3857.4,3.88]
[1761929076464,11.793838,3857.6,3857.4,3.88]
[1761929076759,11.793838,3857.6,3857.5,0.4575]
[1761929077358,14.227797,3857.6,3857.4,3.88]
[1761929077562,12.050627,3857.6,3857.5,0.4575]
[1761929078442,12.370627,3857.6,3857.5,0.4575]
[1761929079343,17.498132,3857.6,3857.5,4.3375]
[1761929079545,13.959732,3857.6,3857.5,4.3375]
[1761929080334,14.721121,3857.6,3857.5,4.3375]
[1761929080537,14.721121,3857.6,3857.5,3.88]
[1761929080538,16.5882531,3857.6,3857.5,3.88]
[1761929080769,17.0660531,3857.6,3857.5,3.88]
[1761929081339,2.3449321,3857.6,3857.5,3.88]
[1761929081539,18.609176,3857.6,3857.5,3.88]
[1761929081754,18.131376,3857.6,3857.5,3.88]
[1761929082172,18.53688,3857.6,3857.5,3.88]
[1761929082380,0.800504,3857.6,3857.5,3.88]
[1761929082540,30.479483,3857.6,3857.5,3.88]
[1761929082743,33.09099454,3857.6,3857.5,3.88]
[1761929083062,15.77877954,3857.6,3857.5,3.88]
[1761929083442,16.39691954,3857.6,3857.5,4.3375]
[1761929083641,13.12973679,3857.6,3857.5,4.3375]
[1761929083855,13.12973679,3857.6,3857.5,4.8005]
[1761929084174,13.12973679,3857.6,3857.5,3.88]
[1761929084378,11.40733379,3857.6,3857.5,4.3375]
[1761929084543,13.81599079,3857.6,3857.5,3.88]
[1761929084766,13.40937,3857.6,3857.5,3.88]
[1761929084964,13.01437,3857.6,3857.5,3.88]
[1761929085406,0.0002,3857.7,3857.5,4.3375]
[1761929085576,17.112916,3857.6,3857.5,4.3375]
[1761929085905,13.140995,3857.6,3857.5,4.3375]
[1761929086299,9.576713,3857.6,3857.5,4.3375]
[1761929086505,14.240446,3857.6,3857.5,3.88]
[1761929086709,15.6645106,3857.6,3857.5,3.88]
[1761929087585,21.1884996,3857.6,3857.5,3.88]
[1761929087790,21.59512846,3857.6,3857.5,3.88]
[1761929088539,29.11485646,3857.6,3857.5,3.88]
[1761929088666,27.56462346,3857.6,3857.5,4.3375]
[1761929088868,7.12610686,3857.6,3857.5,4.8005]
[1761929089076,0.40662886,3857.6,3857.5,4.82642352]
[1761929089370,0.40662886,3857.6,3857.5,4.8005]
[1761929089607,0.40662886,3857.6,3857.5,7.39285255]
[1761929089820,0.40662886,3857.6,3857.5,4.8005]
[1761929090589,0.40662886,3857.6,3857.5,4.3375]
[1761929090986,0.40662886,3857.6,3857.5,4.7947]
[1761929091711,0.40662886,3857.6,3856.4,0.002]
[1761929091712,0.405504,3856.7,3856.4,0.002]
[1761929092020,40.16702869,3856.5,3856.4,0.002]
[1761929092399,40.66282869,3856.5,3856.4,0.002]
[1761929093092,40.66202869,3856.5,3856.4,0.002]
[1761929093295,35.40940876,3856.5,3856.4,0.002]
[1761929093630,36.86502723,3856.5,3856.4,0.002]
[1761929094725,6.86502723,3856.5,3856.4,0.002]
[1761929094924,36.86502723,3856.5,3856.4,0.002]
[1761929095929,17.865437,3856.5,3856.4,0.002]
[1761929096223,5.062299,3856.5,3856.4,0.002]
[1761929096791,13.762837,3856.5,3856.4,0.4676]
[1761929097313,14.089437,3856.5,3856.4,0.002]
[1761929097833,28.570572,3856.5,3856.4,0.002]
[1761929098143,26.42335232,3856.5,3856.4,0.002]
[1761929098325,14.04149178,3856.5,3856.4,0.002]
[1761929098722,2.13307078,3856.5,3856.4,0.002]
[1761929098921,26.73976478,3856.5,3856.4,0.002]
[1761929099432,16.09111178,3856.5,3856.4,0.002]
[1761929099635,15.684321,3856.5,3856.4,0.002]
[1761929099839,27.297423,3856.5,3856.4,0.002]
[1761929100234,30.81163854,3856.5,3856.4,0.002]
[1761929100751,7.8335203,3856.5,3856.4,0.002]
[1761929100947,35.6289511,3856.5,3856.4,0.002]
[1761929101614,36.01951796,3856.5,3856.4,0.002]
[1761929102112,36.15514841,3856.5,3856.4,0.002]
[1761929102748,36.56200059,3856.5,3856.4,0.002]
[1761929103332,36.17143373,3856.5,3856.4,0.002]
[1761929103526,38.78294527,3856.5,3856.4,0.002]
[1761929103743,36.18992051,3856.5,3856.4,0.002]
[1761929103951,32.54007452,3856.5,3856.4,0.002]
[1761929104156,32.21347452,3856.5,3856.4,0.002]
[1761929104318,15.74497152,3856.5,3856.4,0.002]
[1761929104720,16.07157152,3856.5,3856.4,0.002]
[1761929104970,6.03580328,3856.5,3856.4,0.002]
[1761929105256,39.10818343,3856.5,3856.4,0.002]
[1761929105461,39.63438376,3856.5,3856.4,0.002]
[1761929107663,4.55873049,3856.2,3856.1,0.007]
[1761929107869,36.81917735,3856.2,3856.1,0.007]
[1761929108052,39.72892721,3856.2,3856.1,0.007]
[1761929109143,1.56,3855.9,3855.1,0.01]
[1761929109333,41.40353317,3855.2,3855.1,0.01]
[1761929109535,43.41311332,3855.2,3855.1,0.01]
[1761929110736,45.10394852,3855.2,3855.1,0.01]
[1761929110932,40.81921418,3855.2,3855.1,0.01]
[1761929111133,34.32416415,3855.2,3855.1,0.01]
[1761929111335,16.76365515,3855.2,3855.1,0.01]
[1761929111534,22.06922503,3855.2,3855.1,0.01]
[1761929111743,22.56462503,3855.2,3855.1,0.01]
[1761929111944,25.15852417,3855.2,3855.1,0.01]
[1761929112146,43.27243317,3855.2,3855.1,0.01]
[1761929112346,43.27243317,3855.2,3855.1,0.012]
[1761929112547,45.88394471,3855.2,3855.1,0.012]
[1761929112751,36.29959554,3855.2,3855.1,0.012]
[1761929113037,36.70655349,3855.2,3855.1,0.012]
[1761929114273,37.11365125,3855.2,3855.1,0.012]
[1761929115169,19.11860325,3855.2,3855.1,0.4776]
[1761929115339,16.97729171,3855.2,3855.1,0.012]
[1761929115541,17.73239571,3855.2,3855.1,0.012]
[1761929115740,20.71686171,3855.2,3855.1,0.012]
[1761929115972,20.71686171,3855.2,3854.7,0.002]
[1761929115973,32.9996723,3854.8,3854.7,0.002]
[1761929116209,45.56831387,3854.8,3854.7,0.002]
[1761929116373,42.97414557,3854.8,3854.7,0.002]
[1761929116576,40.91174557,3854.8,3854.7,0.002]
[1761929116872,34.41669554,3854.8,3854.7,0.002]
[1761929117074,26.68677954,3854.8,3854.7,0.4676]
[1761929117248,24.075268,3854.8,3854.7,0.4676]
[1761929117434,13.335775,3854.8,3854.7,0.4676]
[1761929117638,13.335775,3854.8,3854.7,0.002]
[1761929118071,2.122584,3854.8,3854.7,0.002]
[1761929118239,32.121784,3854.8,3854.7,0.002]
[1761929118439,43.82251387,3854.8,3854.7,0.002]
[1761929118779,41.22834557,3854.8,3854.7,0.002]
[1761929118973,28.857342,3854.8,3854.7,0.4901]
[1761929119273,32.129384,3854.8,3854.7,0.002]
[1761929119874,39.07663403,3854.8,3854.7,0.002]
[1761929120037,38.62443403,3854.8,3854.7,0.002]
[1761929121077,41.21860233,3854.8,3854.7,0.002]
[1761929121261,41.23594557,3854.8,3854.7,0.002]
[1761929121688,40.91094557,3854.8,3854.7,0.002]
[1761929121892,31.804384,3854.8,3854.7,0.4565]
[1761929122259,31.804384,3854.8,3854.7,0.002]
[1761929122701,31.804384,3854.8,3854.7,0.4565]
[1761929123444,32.21133202,3854.8,3854.7,0.9089]
[1761929123590,20.24730002,3854.8,3854.7,0.9089]
[1761929124304,29.10352202,3854.8,3854.7,0.9089]
[1761929124489,29.51061977,3854.8,3854.7,0.4565]
[1761929124686,32.12213131,3854.8,3854.7,0.4565]
[1761929125299,35.22994131,3854.8,3854.7,0.4565]
[1761929125789,32.61842977,3854.8,3854.7,0.9089]
[1761929126020,29.83169277,3854.8,3854.7,0.9089]
[1761929126256,17.64199677,3854.8,3854.7,0.9089]
[1761929126566,17.30932477,3854.8,3854.7,0.9089]
[1761929126771,11.22540877,3854.8,3854.7,0.9089]
[1761929127317,3.33626665,3854.8,3854.7,0.4565]
[1761929127547,33.74177065,3854.8,3854.7,0.002]
[1761929128261,45.20588898,3854.8,3854.7,0.002]
[1761929128461,42.61172068,3854.8,3854.7,0.002]
[1761929128759,41.75332293,3854.8,3854.7,0.002]
[1761929128959,37.8524412,3854.8,3854.7,0.002]
[1761929129321,35.3696729,3854.8,3854.7,0.002]
[1761929129760,37.9638412,3854.8,3854.7,0.002]
[1761929130051,35.3696729,3854.8,3854.7,0.002]
[1761929130452,32.4982589,3854.8,3854.7,0.002]
[1761929130857,32.9719589,3854.8,3854.7,0.002]
[1761929131065,35.9085272,3854.8,3854.7,0.002]
[1761929131422,38.3059412,3854.8,3854.7,0.002]
[1761929132945,37.89899318,3854.8,3854.7,0.002]
[1761929133449,35.9594196,3854.7,3854.6,0.002]
[1761929133650,35.95975615,3854.2,3854.1,0.01]
[1761929133864,42.69357059,3854.2,3854.1,0.01]
[1761929134025,43.14577059,3854.2,3854.1,0.01]
[1761929134665,43.14577059,3854.2,3852.3,0.4524]
[1761929134666,30.405504,3853.2,3852.3,0.4524]
[1761929134829,32.14526159,3853.2,3852.3,0.4524]
[1761929135027,32.14526159,3853.2,3852.1,0.01]
[1761929135330,32.13826159,3853.2,3853.1,0.4645]
[1761929135675,31.805184,3853.2,3853.1,1.1114]
[1761929135972,4.98722866,3853.2,3853.1,1.1114]
[1761929136438,10.96889966,3853.2,3853.1,1.1114]
[1761929136948,1.80678966,3853.2,3853.1,3.70671286]
[1761929137358,0.40710966,3853.2,3853.1,3.70671286]
[1761929137689,0.40710966,3853.2,3853.1,4.33952049]
[1761929138255,0.40710966,3853.2,3853.1,4.36547361]
[1761929138450,30.0,3854.7,3853.7,2.59484862]
[1761929138656,30.0,3854.7,3854.6,0.4545]
[1761929138975,30.0,3854.7,3853.8,0.4524]
[1761929138976,15.208834,3854.3,3853.8,0.4524]
[1761929139199,8.12904,3854.3,3853.8,0.4524]
[1761929139487,3.01848907,3854.7,3854.2,0.649]
[1761929139488,0.405504,3854.5,3854.2,0.649]
[1761929139781,22.662214,3854.3,3854.2,0.1945]
[1761929140084,6.563745,3854.3,3854.2,0.1945]
[1761929140240,5.574093,3854.3,3854.2,0.649]
[1761929140659,9.629016,3854.3,3854.2,1.1014]
[1761929141175,5.689431,3854.3,3854.2,1.1014]
[1761929141897,10.624354,3854.3,3854.2,1.1014]
[1761929142077,1.39968,3854.3,3854.2,1.1014]
[1761929142472,1.39968,3854.3,3854.2,3.69597215]
[1761929142689,1.39968,3854.3,3854.2,1.1014]
[1761929142874,1.39968,3854.3,3854.2,3.69597215]
[1761929143070,1.39968,3854.3,3854.2,1.1014]
[1761929143276,0.40697753,3854.7,3854.2,1.1014]
[1761929143277,0.40697753,3854.7,3854.2,1.47100265]
[1761929143601,5.56292953,3854.7,3854.6,0.4545]
[1761929144002,5.56292953,3854.7,3854.6,0.9069]
[1761929144880,3.96485753,3854.7,3854.6,0.9069]
[1761929145082,1.80585753,3854.7,3854.6,0.9069]
[1761929145286,1.80585753,3854.7,3854.6,3.50120291]
[1761929145935,1.39968,3854.7,3854.6,0.9069]
[1761929146069,7.194122,3854.6,3854.2,0.1945]
[1761929146409,7.194122,3854.6,3853.7,0.4524]
[1761929146410,18.987165,3854.2,3853.7,2.59485413]
[1761929146614,16.918944,3854.2,3853.8,0.4524]
[1761929146767,30.0,3854.5,3853.6,2.5949569]
[1761929146973,30.0,3854.5,3853.5,3.04739849]
[1761929147403,30.0,3854.5,3853.7,2.59485504]
[1761929147773,30.0,3854.5,3853.8,0.4524]
[1761929148273,30.0,3854.5,3853.7,2.59488334]
[1761929148505,30.0,3854.5,3853.8,2.5948399]
[1761929148879,30.0,3854.5,3853.8,0.4524]
[1761929149086,25.021476,3854.4,3853.8,0.4524]
[1761929149614,1.39968,3854.3,3853.1,2.79981254]
[1761929149924,1.39968,3854.3,3853.2,2.59521544]
[1761929149925,11.41953,3853.8,3853.2,2.59521544]
[1761929150071,11.41953,3853.8,3853.2,0.4829]
[1761929150270,27.41495,3853.9,3853.2,0.4829]
[1761929150513,28.02485,3853.9,3853.1,0.2065]
[1761929150816,28.02485,3853.9,3853.1,3.28465435]
[1761929150817,14.628478,3853.8,3853.1,3.28465435]
[1761929150970,8.189896,3853.8,3853.1,3.28470492]
[1761929151318,5.863206,3853.9,3853.7,0.4522]
[1761929151517,5.863206,3853.9,3853.2,3.07814551]
[1761929151518,1.39968,3854.2,3853.9,0.4522]
[1761929151810,3.584758,3854.1,3853.8,0.4829]
[1761929152121,3.584758,3854.1,3853.1,0.2065]
[1761929152122,8.48726,3853.8,3853.1,0.2065]
[1761929152275,5.842299,3853.8,3853.2,0.4829]
[1761929152476,21.73253,3854.0,3853.4,2.59509701]
[1761929152693,20.280616,3854.0,3853.4,2.59509701]
[1761929152907,18.584482,3854.1,3853.2,3.07808366]
[1761929153218,18.584482,3854.1,3853.4,3.07796847]
[1761929153417,16.866529,3854.1,3853.6,2.59496154]
[1761929153877,16.866529,3854.1,3853.6,3.07786154]
[1761929154206,16.866529,3854.1,3853.7,0.4829]
[1761929154806,16.866529,3854.1,3853.7,3.0777944]
[1761929155001,7.861402,3854.1,3854.0,0.4522]
[1761929155602,7.027149,3854.1,3854.0,0.4522]
[1761929156103,9.763374,3854.1,3854.0,0.4522]
[1761929156313,10.17037534,3854.1,3854.0,0.4522]